Body Name,Body,Service Division,Expense Type,Date Paid,Transaction Ref,Invoice Amount,Supplier Name,,
East Lindsey District Council,http://statistics.data.gov.uk/id/local-authority/32UC,Corporate,Payroll - Lincolnshire Credit Union,27/01/2022,30008021,360.00 ,Notts and Lincs Credit Union Ltd,,
East Lindsey District Council,http://statistics.data.gov.uk/id/local-authority/32UC,Corporate,Payroll - Superannuation AVC,11/01/2022,30006980,420.00 ,ELDC Conservative Group,,
East Lindsey District Council,http://statistics.data.gov.uk/id/local-authority/32UC,Corporate,Payroll - Unison,27/01/2022,30008026,761.85 ,Unison,,
East Lindsey District Council,http://statistics.data.gov.uk/id/local-authority/32UC,AD Support Services & Partnerships,Other Income,27/01/2022,30008026,-22.86 ,Unison,,
East Lindsey District Council,http://statistics.data.gov.uk/id/local-authority/32UC,Capital,Professional Fees,13/01/2022,30006889,"8,047.13 ",Perfect Circle Jv Ltd,,
East Lindsey District Council,http://statistics.data.gov.uk/id/local-authority/32UC,Capital,Professional Fees,20/01/2022,30006916,259.95 ,Emprocom Ltd,,
East Lindsey District Council,http://statistics.data.gov.uk/id/local-authority/32UC,Capital,Professional Fees,18/01/2022,30007163,"4,088.25 ",John Peberdy Partnership,,
East Lindsey District Council,http://statistics.data.gov.uk/id/local-authority/32UC,Capital,Professional Fees,18/01/2022,30007322,435.00 ,Heritage Trust of Lincolnshire Ltd,,
East Lindsey District Council,http://statistics.data.gov.uk/id/local-authority/32UC,Capital,Works to Buildings (Main Contractor),11/01/2022,30007101,"3,150.00 ",Direct Construction Lincs Ltd,,
East Lindsey District Council,http://statistics.data.gov.uk/id/local-authority/32UC,Capital,Works to Buildings (Main Contractor),20/01/2022,30007201,"208,161.93 ",Willmott Dixon Construction Ltd,,
East Lindsey District Council,http://statistics.data.gov.uk/id/local-authority/32UC,Climate Change and Environment,Materials and Consumables,18/01/2022,30007867,251.95 ,Pomona Fruits Ltd.,,
East Lindsey District Council,http://statistics.data.gov.uk/id/local-authority/32UC,Climate Change and Environment,Materials and Consumables,10/02/2022,30007917,761.00 ,Winterling,,
East Lindsey District Council,http://statistics.data.gov.uk/id/local-authority/32UC,Climate Change and Environment,Staff Training Expenses (Non-Payroll),20/01/2022,30007094,"1,216.00 ",Apse,,
East Lindsey District Council,http://statistics.data.gov.uk/id/local-authority/32UC,Corporate Accounting,Postages,27/01/2022,30007183,341.67 ,Royal Mail Group Ltd,,
East Lindsey District Council,http://statistics.data.gov.uk/id/local-authority/32UC,Corporate Accounting,Public Sector Partnership Services,27/01/2022,30007693,"437,944.75 ",Public Sector Partnership Services Ltd,,
East Lindsey District Council,http://statistics.data.gov.uk/id/local-authority/32UC,Corporate Management,Course Fees,18/01/2022,30007593,390.00 ,Centre For Public Scrutiny Ltd,,
East Lindsey District Council,http://statistics.data.gov.uk/id/local-authority/32UC,Corporate Management,Grants and Contributions - Where a Service is Received,20/01/2022,30007692,"50,000.00 ",Charis Grants Ltd,,
East Lindsey District Council,http://statistics.data.gov.uk/id/local-authority/32UC,Corporate Management,Grants and Contributions - Where a Service is Received,01/02/2022,30007914,"2,495.00 ",Lincolnshire County Council,,
East Lindsey District Council,http://statistics.data.gov.uk/id/local-authority/32UC,Corporate Management,Grants and Contributions to Outside Bodies - No Service Received,11/01/2022,30006705,"1,500.00 ",PERSONAL INFORMATION REDACTED,,
East Lindsey District Council,http://statistics.data.gov.uk/id/local-authority/32UC,Corporate Management,Grants and Contributions to Outside Bodies - No Service Received,11/01/2022,30006740,"2,370.47 ",Bauer Radio Ltd,,
East Lindsey District Council,http://statistics.data.gov.uk/id/local-authority/32UC,Corporate Management,Grants and Contributions to Outside Bodies - No Service Received,25/01/2022,30006987,835.00 ,Reach Plc Publishing Ltd,,
East Lindsey District Council,http://statistics.data.gov.uk/id/local-authority/32UC,Corporate Management,Grants and Contributions to Outside Bodies - No Service Received,27/01/2022,30007177,822.48 ,Reach Plc Publishing Ltd,,
East Lindsey District Council,http://statistics.data.gov.uk/id/local-authority/32UC,Corporate Management,Lincolnshire Legal Services,18/01/2022,30007430,"16,335.77 ",Lincolnshire County Council,,
East Lindsey District Council,http://statistics.data.gov.uk/id/local-authority/32UC,Corporate Management,Materials and Consumables,18/01/2022,30007084,"1,214.80 ",Eastern Shires Purchasing Organisation,,
East Lindsey District Council,http://statistics.data.gov.uk/id/local-authority/32UC,Corporate Management,Materials and Consumables,03/02/2022,30007304,895.90 ,Eastern Shires Purchasing Organisation,,
East Lindsey District Council,http://statistics.data.gov.uk/id/local-authority/32UC,Corporate Management,Materials and Consumables,08/02/2022,30007664,398.00 ,Eastern Shires Purchasing Organisation,,
East Lindsey District Council,http://statistics.data.gov.uk/id/local-authority/32UC,Corporate Management,Professional and Contractors Fees,13/01/2022,30006708,"2,000.00 ",Popcorn Media,,
East Lindsey District Council,http://statistics.data.gov.uk/id/local-authority/32UC,Corporate Management,Professional and Contractors Fees,11/01/2022,30006906,"7,000.00 ",South Kesteven District Council,,
East Lindsey District Council,http://statistics.data.gov.uk/id/local-authority/32UC,Corporate Management,Shared Management,06/01/2022,30006181,"208,770.00 ",Boston Borough Council,,
East Lindsey District Council,http://statistics.data.gov.uk/id/local-authority/32UC,Corporate Management,Subscriptions to Organisations and Other Bodies,18/01/2022,30006697,750.00 ,Sandra Whiles Coaching Ltd,,
East Lindsey District Council,http://statistics.data.gov.uk/id/local-authority/32UC,Corporate Management,Vehicle Hire,11/01/2022,30006820,272.18 ,Tjs Self Drive,,
East Lindsey District Council,http://statistics.data.gov.uk/id/local-authority/32UC,DC Revenues & Benefits,Other Income,03/02/2022,30007609,338.67 ,Jacobs,,
East Lindsey District Council,http://statistics.data.gov.uk/id/local-authority/32UC,DC Revenues & Benefits,Other Income,01/02/2022,30007708,384.45 ,Bristow and Sutor,,
East Lindsey District Council,http://statistics.data.gov.uk/id/local-authority/32UC,DC Revenues & Benefits,Other Income,15/02/2022,30007986,350.28 ,Jacobs,,
East Lindsey District Council,http://statistics.data.gov.uk/id/local-authority/32UC,Development Control,Employee Professional Subscriptions (Non-Payroll),11/01/2022,30006788,321.00 ,RTPI,,
East Lindsey District Council,http://statistics.data.gov.uk/id/local-authority/32UC,Development Control,Employee Professional Subscriptions (Non-Payroll),11/01/2022,30006789,321.00 ,RTPI,,
East Lindsey District Council,http://statistics.data.gov.uk/id/local-authority/32UC,Development Control,Employee Professional Subscriptions (Non-Payroll),18/01/2022,30007571,321.00 ,RTPI,,
East Lindsey District Council,http://statistics.data.gov.uk/id/local-authority/32UC,Development Control,Planning Application Fees,10/02/2022,30007677,256.00 ,PERSONAL INFORMATION REDACTED,,
East Lindsey District Council,http://statistics.data.gov.uk/id/local-authority/32UC,Development Control,Planning Application Fees,27/01/2022,30007928,462.00 ,Portal Plan Quest Ltd,,
East Lindsey District Council,http://statistics.data.gov.uk/id/local-authority/32UC,Development Control,Subscriptions to Organisations and Other Bodies,01/02/2022,30007889,"8,111.19 ",Boston Borough Council,,
East Lindsey District Council,http://statistics.data.gov.uk/id/local-authority/32UC,East Lindsey Balance Sheet,ST Debtors HB Overpayments Control Account,06/01/2022,30006750,478.88 ,PERSONAL INFORMATION REDACTED,,
East Lindsey District Council,http://statistics.data.gov.uk/id/local-authority/32UC,East Lindsey Balance Sheet,ST Debtors HB Overpayments Control Account,01/02/2022,30008018,419.95 ,PERSONAL INFORMATION REDACTED,,
East Lindsey District Council,http://statistics.data.gov.uk/id/local-authority/32UC,East Lindsey Collection Fund,Transfer Payment to BID,06/01/2022,30006696,"28,060.11 ",Lincolnshire Coastal Destination Bid,,
East Lindsey District Council,http://statistics.data.gov.uk/id/local-authority/32UC,East Lindsey Collection Fund,Transfer Payment to BID,25/01/2022,30007704,"5,297.68 ",Lincolnshire Coastal Destination Bid,,
East Lindsey District Council,http://statistics.data.gov.uk/id/local-authority/32UC,Environmental Health,Professional and Contractors Fees,13/01/2022,30006726,956.25 ,G2 Recruitment Solutions,,
East Lindsey District Council,http://statistics.data.gov.uk/id/local-authority/32UC,Environmental Health,Professional and Contractors Fees,13/01/2022,30006799,990.00 ,Mallard Consultancy Ltd,,
East Lindsey District Council,http://statistics.data.gov.uk/id/local-authority/32UC,Environmental Health,Professional and Contractors Fees,11/01/2022,30006800,"1,300.00 ",Arnold Funeral Service,,
East Lindsey District Council,http://statistics.data.gov.uk/id/local-authority/32UC,Environmental Health,Professional and Contractors Fees,18/01/2022,30006813,454.90 ,ALS Environmental Ltd,,
East Lindsey District Council,http://statistics.data.gov.uk/id/local-authority/32UC,Environmental Health,Professional and Contractors Fees,20/01/2022,30006927,956.25 ,G2 Recruitment Solutions,,
East Lindsey District Council,http://statistics.data.gov.uk/id/local-authority/32UC,Environmental Health,Professional and Contractors Fees,20/01/2022,30006928,247.85 ,ALS Environmental Ltd,,
East Lindsey District Council,http://statistics.data.gov.uk/id/local-authority/32UC,Environmental Health,Professional and Contractors Fees,13/01/2022,30007155,950.00 ,Foxhall Construction Ltd,,
East Lindsey District Council,http://statistics.data.gov.uk/id/local-authority/32UC,Environmental Health,Professional and Contractors Fees,27/01/2022,30007207,956.25 ,G2 Recruitment Solutions,,
East Lindsey District Council,http://statistics.data.gov.uk/id/local-authority/32UC,Environmental Health,Professional and Contractors Fees,10/02/2022,30007583,956.25 ,G2 Recruitment Solutions,,
East Lindsey District Council,http://statistics.data.gov.uk/id/local-authority/32UC,Environmental Health,Professional and Contractors Fees,27/01/2022,30007890,"2,250.00 ",Pell Plant Hire Ltd,,
East Lindsey District Council,http://statistics.data.gov.uk/id/local-authority/32UC,Environmental Health,Professional and Contractors Fees,27/01/2022,30007891,"49,805.00 ",Pell Plant Hire Ltd,,
East Lindsey District Council,http://statistics.data.gov.uk/id/local-authority/32UC,Environmental Health,Professional and Contractors Fees,27/01/2022,30007925,"1,300.00 ",Arnold Funeral Service,,
East Lindsey District Council,http://statistics.data.gov.uk/id/local-authority/32UC,Growth Relationships & Growth Promotions,Fixtures And Fittings,11/01/2022,30006949,"2,494.19 ",GRS Signs Ltd,,
East Lindsey District Council,http://statistics.data.gov.uk/id/local-authority/32UC,Growth Relationships & Growth Promotions,Grants and Contributions to Outside Bodies - No Service Received,11/01/2022,30006913,"1,055.63 ",Bauer Radio Ltd,,
East Lindsey District Council,http://statistics.data.gov.uk/id/local-authority/32UC,Growth Relationships & Growth Promotions,Other Communication Costs,06/01/2022,30006728,"2,482.51 ",Electric Egg,,
East Lindsey District Council,http://statistics.data.gov.uk/id/local-authority/32UC,Growth Relationships & Growth Promotions,Other Communication Costs,18/01/2022,30007030,344.83 ,Vodafone Ltd Corporate,,
East Lindsey District Council,http://statistics.data.gov.uk/id/local-authority/32UC,Growth Relationships & Growth Promotions,Other Communication Costs,13/01/2022,30007078,"1,000.00 ",Distract Ltd,,
East Lindsey District Council,http://statistics.data.gov.uk/id/local-authority/32UC,Growth Relationships & Growth Promotions,Other Communication Costs,01/02/2022,30007913,"3,000.00 ",Lincolnshire County Council,,
East Lindsey District Council,http://statistics.data.gov.uk/id/local-authority/32UC,Growth Relationships & Growth Promotions,Other Miscellaneous Expenses,13/01/2022,30007168,576.00 ,Foxhall Construction Ltd,,
East Lindsey District Council,http://statistics.data.gov.uk/id/local-authority/32UC,Growth Relationships & Growth Promotions,Professional and Contractors Fees,11/01/2022,30007092,325.00 ,Root Studio,,
East Lindsey District Council,http://statistics.data.gov.uk/id/local-authority/32UC,Growth Relationships & Growth Promotions,Professional and Contractors Fees,20/01/2022,30007205,"4,493.71 ",Pick Everard,,
East Lindsey District Council,http://statistics.data.gov.uk/id/local-authority/32UC,Growth Relationships & Growth Promotions,Professional and Contractors Fees,18/01/2022,30007232,"3,300.00 ",Player Roberts Bell Architects Ltd,,
East Lindsey District Council,http://statistics.data.gov.uk/id/local-authority/32UC,Growth Relationships & Growth Promotions,Professional and Contractors Fees,20/01/2022,30007237,"2,400.00 ",Public Sector Partnership Services Ltd,,
East Lindsey District Council,http://statistics.data.gov.uk/id/local-authority/32UC,Housing Advice & Homelessness,Agency Staff,06/01/2022,30006751,493.57 ,Red Rock Partnership Ltd,,
East Lindsey District Council,http://statistics.data.gov.uk/id/local-authority/32UC,Housing Advice & Homelessness,Agency Staff,11/01/2022,30006931,480.75 ,Red Rock Partnership Ltd,,
East Lindsey District Council,http://statistics.data.gov.uk/id/local-authority/32UC,Housing Advice & Homelessness,Agency Staff,11/01/2022,30006977,467.93 ,Red Rock Partnership Ltd,,
East Lindsey District Council,http://statistics.data.gov.uk/id/local-authority/32UC,Housing Advice & Homelessness,Agency Staff,18/01/2022,30007209,323.71 ,Red Rock Partnership Ltd,,
East Lindsey District Council,http://statistics.data.gov.uk/id/local-authority/32UC,Housing Advice & Homelessness,Agency Staff,20/01/2022,30007648,378.19 ,Red Rock Partnership Ltd,,
East Lindsey District Council,http://statistics.data.gov.uk/id/local-authority/32UC,Housing Advice & Homelessness,Agency Staff,27/01/2022,30007915,480.75 ,Red Rock Partnership Ltd,,
East Lindsey District Council,http://statistics.data.gov.uk/id/local-authority/32UC,Housing Advice & Homelessness,Bed and Breakfast Accommodation (Homelessness Service),11/01/2022,30006782,315.00 ,The new England hotel (Boston),,
East Lindsey District Council,http://statistics.data.gov.uk/id/local-authority/32UC,Housing Advice & Homelessness,Bed and Breakfast Accommodation (Homelessness Service),11/01/2022,30006783,315.00 ,The new England hotel (Boston),,
East Lindsey District Council,http://statistics.data.gov.uk/id/local-authority/32UC,Housing Advice & Homelessness,Bed and Breakfast Accommodation (Homelessness Service),11/01/2022,30006945,"4,200.00 ",Red House Cottage,,
East Lindsey District Council,http://statistics.data.gov.uk/id/local-authority/32UC,Housing Advice & Homelessness,Bed and Breakfast Accommodation (Homelessness Service),01/02/2022,30007646,225.00 ,The new England hotel (Boston),,
East Lindsey District Council,http://statistics.data.gov.uk/id/local-authority/32UC,Housing Advice & Homelessness,Bed and Breakfast Accommodation (Homelessness Service),25/01/2022,30007651,315.00 ,The new England hotel (Boston),,
East Lindsey District Council,http://statistics.data.gov.uk/id/local-authority/32UC,Housing Advice & Homelessness,Bed and Breakfast Accommodation (Homelessness Service),25/01/2022,30007652,315.00 ,The new England hotel (Boston),,
East Lindsey District Council,http://statistics.data.gov.uk/id/local-authority/32UC,Housing Advice & Homelessness,Bed and Breakfast Accommodation (Homelessness Service),01/02/2022,30007655,315.00 ,The new England hotel (Boston),,
East Lindsey District Council,http://statistics.data.gov.uk/id/local-authority/32UC,Housing Advice & Homelessness,Computer Hardware Purchase,18/01/2022,30007031,344.83 ,Vodafone Ltd Corporate,,
East Lindsey District Council,http://statistics.data.gov.uk/id/local-authority/32UC,Housing Advice & Homelessness,Electricity,25/01/2022,30007826,97.62 ,EDF Energy,,
East Lindsey District Council,http://statistics.data.gov.uk/id/local-authority/32UC,Housing Advice & Homelessness,Electricity,01/02/2022,30007833,"1,087.70 ",E.On,,
East Lindsey District Council,http://statistics.data.gov.uk/id/local-authority/32UC,Housing Advice & Homelessness,Furniture and Equipment,13/01/2022,30007160,384.99 ,Faulkners,,
East Lindsey District Council,http://statistics.data.gov.uk/id/local-authority/32UC,Housing Advice & Homelessness,Gas,25/01/2022,30007826,146.37 ,EDF Energy,,
East Lindsey District Council,http://statistics.data.gov.uk/id/local-authority/32UC,Housing Advice & Homelessness,Grants and Contributions - Where a Service is Received,25/01/2022,30007871,"3,518.71 ",HM Prison & Probation,,
East Lindsey District Council,http://statistics.data.gov.uk/id/local-authority/32UC,Housing Advice & Homelessness,Grants and Contributions - Where a Service is Received,01/02/2022,30008042,400.00 ,Corps Monitoring Ltd,,
East Lindsey District Council,http://statistics.data.gov.uk/id/local-authority/32UC,Housing Advice & Homelessness,Grants and Contributions to Outside Bodies - No Service Received,18/01/2022,30006681,440.00 ,PERSONAL INFORMATION REDACTED,,
East Lindsey District Council,http://statistics.data.gov.uk/id/local-authority/32UC,Housing Advice & Homelessness,Grants and Contributions to Outside Bodies - No Service Received,11/01/2022,30006904,"25,276.41 ",Brians Building Services,,
East Lindsey District Council,http://statistics.data.gov.uk/id/local-authority/32UC,Housing Advice & Homelessness,Grants and Contributions to Outside Bodies - No Service Received,11/01/2022,30006905,"5,188.38 ",Gelder Ltd,,
East Lindsey District Council,http://statistics.data.gov.uk/id/local-authority/32UC,Housing Advice & Homelessness,Grants and Contributions to Outside Bodies - No Service Received,20/01/2022,30007641,400.00 ,PERSONAL INFORMATION REDACTED,,
East Lindsey District Council,http://statistics.data.gov.uk/id/local-authority/32UC,Housing Advice & Homelessness,Grants and Contributions to Outside Bodies - No Service Received,20/01/2022,30007642,"6,868.14 ",Baptist Building and Roofing Co Ltd,,
East Lindsey District Council,http://statistics.data.gov.uk/id/local-authority/32UC,Housing Advice & Homelessness,Grants and Contributions to Outside Bodies - No Service Received,20/01/2022,30007643,"6,389.10 ",Dave Howard Building and Joinery Serv,,
East Lindsey District Council,http://statistics.data.gov.uk/id/local-authority/32UC,Housing Advice & Homelessness,Grants and Contributions to Outside Bodies - No Service Received,20/01/2022,30007684,"4,315.09 ",Andrew Blades Building Services Ltd,,
East Lindsey District Council,http://statistics.data.gov.uk/id/local-authority/32UC,Housing Advice & Homelessness,Grants and Contributions to Outside Bodies - No Service Received,20/01/2022,30007688,"15,000.00 ",Sibjon Builders,,
East Lindsey District Council,http://statistics.data.gov.uk/id/local-authority/32UC,Housing Advice & Homelessness,Grants and Contributions to Outside Bodies - No Service Received,10/02/2022,30007689,"1,345.30 ",Hugh Steeper Ltd,,
East Lindsey District Council,http://statistics.data.gov.uk/id/local-authority/32UC,Housing Advice & Homelessness,Grants and Contributions to Outside Bodies - No Service Received,20/01/2022,30007694,"5,380.00 ",Obam Stairlifts,,
East Lindsey District Council,http://statistics.data.gov.uk/id/local-authority/32UC,Housing Advice & Homelessness,Grants and Contributions to Outside Bodies - No Service Received,20/01/2022,30007699,"11,630.67 ",Baptist Building and Roofing Co Ltd,,
East Lindsey District Council,http://statistics.data.gov.uk/id/local-authority/32UC,Housing Advice & Homelessness,Grants and Contributions to Outside Bodies - No Service Received,25/01/2022,30007788,"4,956.37 ",Gary Walmsley Construction,,
East Lindsey District Council,http://statistics.data.gov.uk/id/local-authority/32UC,Housing Advice & Homelessness,Grants and Contributions to Outside Bodies - No Service Received,25/01/2022,30007918,"10,000.00 ",Sibjon Builders,,
East Lindsey District Council,http://statistics.data.gov.uk/id/local-authority/32UC,Housing Advice & Homelessness,Grants and Contributions to Outside Bodies - No Service Received,27/01/2022,30007989,"4,845.46 ",Lincolnshire Bathrooms and Wetrooms,,
East Lindsey District Council,http://statistics.data.gov.uk/id/local-authority/32UC,Housing Advice & Homelessness,Grants and Contributions to Outside Bodies - No Service Received,27/01/2022,30008004,"10,509.85 ",Walkers Construction Ltd,,
East Lindsey District Council,http://statistics.data.gov.uk/id/local-authority/32UC,Housing Advice & Homelessness,Grants and Contributions to Outside Bodies - No Service Received,27/01/2022,30008012,"5,972.61 ",Kes Building,,
East Lindsey District Council,http://statistics.data.gov.uk/id/local-authority/32UC,Housing Advice & Homelessness,Grants and Contributions to Outside Bodies - No Service Received,01/02/2022,30008016,"4,405.59 ",Kes Building,,
East Lindsey District Council,http://statistics.data.gov.uk/id/local-authority/32UC,Housing Advice & Homelessness,Grants and Contributions to Outside Bodies - No Service Received,01/02/2022,30008071,"9,294.31 ",R G Carter Building Ltd,,
East Lindsey District Council,http://statistics.data.gov.uk/id/local-authority/32UC,Housing Advice & Homelessness,Other Communication Costs,27/01/2022,30007611,773.77 ,Alertcom Limited,,
East Lindsey District Council,http://statistics.data.gov.uk/id/local-authority/32UC,Housing Advice & Homelessness,Other Miscellaneous Expenses,06/01/2022,30006746,"75,285.48 ",West Lindsey District Council,,
East Lindsey District Council,http://statistics.data.gov.uk/id/local-authority/32UC,Housing Advice & Homelessness,Other Miscellaneous Expenses,11/01/2022,30007146,"1,350.00 ",East Midlands Community Led Housing,,
East Lindsey District Council,http://statistics.data.gov.uk/id/local-authority/32UC,Housing Advice & Homelessness,Water and Sewerage Charges,20/01/2022,30007645,336.73 ,Anglian Water,,
East Lindsey District Council,http://statistics.data.gov.uk/id/local-authority/32UC,Information Technology,Computer Hardware Maintenance,25/01/2022,30007680,448.75 ,Direct Telecommunications Systems,,
East Lindsey District Council,http://statistics.data.gov.uk/id/local-authority/32UC,Information Technology,Computer Software Licence Costs,10/02/2022,30007323,"15,439.32 ",Phoenix Software Ltd,,
East Lindsey District Council,http://statistics.data.gov.uk/id/local-authority/32UC,Information Technology,Computer Software Purchase,25/01/2022,30007690,"15,107.50 ",Public Sector Partnership Services Ltd,,
East Lindsey District Council,http://statistics.data.gov.uk/id/local-authority/32UC,Information Technology,External Printing and Design Costs,06/01/2022,30006685,"3,623.20 ",Public Sector Partnership Services Ltd,,
East Lindsey District Council,http://statistics.data.gov.uk/id/local-authority/32UC,Information Technology,Materials and Consumables,13/01/2022,30006812,433.45 ,Banner Group Ltd Ta Spectrum,,
East Lindsey District Council,http://statistics.data.gov.uk/id/local-authority/32UC,Information Technology,Professional and Contractors Fees,20/01/2022,30006742,"1,200.00 ",5b Network Consultancy Ltd,,
East Lindsey District Council,http://statistics.data.gov.uk/id/local-authority/32UC,Information Technology,PSPS Non-Base Contract Costs,11/01/2022,30007091,"13,350.00 ",Public Sector Partnership Services Ltd,,
East Lindsey District Council,http://statistics.data.gov.uk/id/local-authority/32UC,Information Technology,Telephones,20/01/2022,30007032,"5,508.00 ",Vodafone Ltd Corporate,,
East Lindsey District Council,http://statistics.data.gov.uk/id/local-authority/32UC,Information Technology,Telephones,20/01/2022,30007599,"1,028.30 ",Multidata,,
East Lindsey District Council,http://statistics.data.gov.uk/id/local-authority/32UC,Information Technology,Telephones,27/01/2022,30007686,"2,253.95 ",Daisy Corporate Services Trading Ltd,,
East Lindsey District Council,http://statistics.data.gov.uk/id/local-authority/32UC,Information Technology,Telephones,25/01/2022,30007797,468.27 ,Vodafone Ltd Corporate,,
East Lindsey District Council,http://statistics.data.gov.uk/id/local-authority/32UC,Information Technology,Telephones,01/02/2022,30008005,"2,270.21 ",Vodafone Ltd Corporate,,
East Lindsey District Council,http://statistics.data.gov.uk/id/local-authority/32UC,Information Technology,Telephones,01/02/2022,30008007,"2,276.95 ",Vodafone Ltd Corporate,,
East Lindsey District Council,http://statistics.data.gov.uk/id/local-authority/32UC,Information Technology,Telephones,24/02/2022,30008020,468.27 ,Vodafone Ltd Corporate,,
East Lindsey District Council,http://statistics.data.gov.uk/id/local-authority/32UC,Leisure Operations,Buildings Maintenance - Programmed,20/01/2022,30006704,446.67 ,Evoqua Water Technologies Ltd,,
East Lindsey District Council,http://statistics.data.gov.uk/id/local-authority/32UC,Leisure Operations,Buildings Maintenance - Programmed,06/01/2022,30006706,"9,350.87 ",Asher Swimpool Centre Ltd,,
East Lindsey District Council,http://statistics.data.gov.uk/id/local-authority/32UC,Leisure Operations,Buildings Maintenance - Programmed,20/01/2022,30006707,446.67 ,Evoqua Water Technologies Ltd,,
East Lindsey District Council,http://statistics.data.gov.uk/id/local-authority/32UC,Leisure Operations,Buildings Maintenance - Programmed,20/01/2022,30006709,446.67 ,Evoqua Water Technologies Ltd,,
East Lindsey District Council,http://statistics.data.gov.uk/id/local-authority/32UC,Leisure Operations,Buildings Maintenance - Programmed,11/01/2022,30006847,652.93 ,EJ Parker Technical Services (Louth) Ltd,,
East Lindsey District Council,http://statistics.data.gov.uk/id/local-authority/32UC,Leisure Operations,Buildings Maintenance - Programmed,13/01/2022,30006907,"1,750.00 ",Rubaroc,,
East Lindsey District Council,http://statistics.data.gov.uk/id/local-authority/32UC,Leisure Operations,Buildings Maintenance - Programmed,11/01/2022,30007033,"1,671.88 ",EJ Parker Technical Services (Louth) Ltd,,
East Lindsey District Council,http://statistics.data.gov.uk/id/local-authority/32UC,Leisure Operations,Buildings Maintenance - Programmed,11/01/2022,30007034,"2,305.20 ",EJ Parker Technical Services (Louth) Ltd,,
East Lindsey District Council,http://statistics.data.gov.uk/id/local-authority/32UC,Leisure Operations,Buildings Maintenance - Programmed,18/01/2022,30007221,422.50 ,TVF UK Limited,,
East Lindsey District Council,http://statistics.data.gov.uk/id/local-authority/32UC,Leisure Operations,Buildings Maintenance - Programmed,18/01/2022,30007226,369.75 ,TVF UK Limited,,
East Lindsey District Council,http://statistics.data.gov.uk/id/local-authority/32UC,Leisure Operations,Buildings Maintenance - Programmed,27/01/2022,30007681,895.00 ,TMD Leisure Services Ltd,,
East Lindsey District Council,http://statistics.data.gov.uk/id/local-authority/32UC,Leisure Operations,Buildings Maintenance - Programmed,27/01/2022,30007697,"3,790.00 ",TMD Leisure Services Ltd,,
East Lindsey District Council,http://statistics.data.gov.uk/id/local-authority/32UC,Leisure Operations,Buildings Maintenance - Programmed,25/01/2022,30007789,"1,920.00 ",Second Element Limited,,
East Lindsey District Council,http://statistics.data.gov.uk/id/local-authority/32UC,Leisure Operations,Buildings Maintenance - Programmed,25/01/2022,30007831,"2,190.00 ",J Melton Ltd,,
East Lindsey District Council,http://statistics.data.gov.uk/id/local-authority/32UC,Leisure Operations,Buildings Maintenance - Programmed,15/02/2022,30007974,595.00 ,Morris Vermaport Ltd,,
East Lindsey District Council,http://statistics.data.gov.uk/id/local-authority/32UC,Leisure Operations,Buildings Maintenance - Programmed,27/01/2022,30008014,"2,316.46 ",EJ Parker Technical Services (Louth) Ltd,,
East Lindsey District Council,http://statistics.data.gov.uk/id/local-authority/32UC,Leisure Operations,Buildings Maintenance - Programmed,27/01/2022,30008015,469.96 ,EJ Parker Technical Services (Louth) Ltd,,
East Lindsey District Council,http://statistics.data.gov.uk/id/local-authority/32UC,Leisure Operations,Buildings Maintenance - Programmed,27/01/2022,30008031,"1,613.00 ",J Melton Ltd,,
East Lindsey District Council,http://statistics.data.gov.uk/id/local-authority/32UC,Leisure Operations,Buildings Maintenance - Programmed,27/01/2022,30008033,"2,838.00 ",J Melton Ltd,,
East Lindsey District Council,http://statistics.data.gov.uk/id/local-authority/32UC,Leisure Operations,Buildings Maintenance - Programmed,03/02/2022,30008035,864.60 ,Capital Floors Ltd,,
East Lindsey District Council,http://statistics.data.gov.uk/id/local-authority/32UC,Leisure Operations,Buildings Maintenance - Programmed,01/02/2022,30008065,"2,778.51 ",EJ Parker Technical Services (Louth) Ltd,,
East Lindsey District Council,http://statistics.data.gov.uk/id/local-authority/32UC,Leisure Operations,Buildings Maintenance - Responsive,06/01/2022,30006673,"1,651.60 ",Airco Refrigeration Air Conditioning Ltd,,
East Lindsey District Council,http://statistics.data.gov.uk/id/local-authority/32UC,Leisure Operations,Buildings Maintenance - Responsive,06/01/2022,30006674,306.00 ,Airco Refrigeration Air Conditioning Ltd,,
East Lindsey District Council,http://statistics.data.gov.uk/id/local-authority/32UC,Leisure Operations,Buildings Maintenance - Responsive,06/01/2022,30006675,222.33 ,Airco Refrigeration Air Conditioning Ltd,,
East Lindsey District Council,http://statistics.data.gov.uk/id/local-authority/32UC,Leisure Operations,Buildings Maintenance - Responsive,06/01/2022,30006676,409.21 ,Airco Refrigeration Air Conditioning Ltd,,
East Lindsey District Council,http://statistics.data.gov.uk/id/local-authority/32UC,Leisure Operations,Buildings Maintenance - Responsive,06/01/2022,30006699,240.00 ,Ajet Drain Services Ltd,,
East Lindsey District Council,http://statistics.data.gov.uk/id/local-authority/32UC,Leisure Operations,Buildings Maintenance - Responsive,18/01/2022,30006702,"1,020.73 ",H20 Servicing Ltd,,
East Lindsey District Council,http://statistics.data.gov.uk/id/local-authority/32UC,Leisure Operations,Buildings Maintenance - Responsive,06/01/2022,30006717,968.33 ,TVF UK Limited,,
East Lindsey District Council,http://statistics.data.gov.uk/id/local-authority/32UC,Leisure Operations,Buildings Maintenance - Responsive,11/01/2022,30006784,"26,589.61 ",Gelder Ltd,,
East Lindsey District Council,http://statistics.data.gov.uk/id/local-authority/32UC,Leisure Operations,Buildings Maintenance - Responsive,13/01/2022,30007197,213.60 ,Lincoln Security Ltd,,
East Lindsey District Council,http://statistics.data.gov.uk/id/local-authority/32UC,Leisure Operations,Buildings Maintenance - Responsive,18/01/2022,30007329,334.97 ,Airco Refrigeration Air Conditioning Ltd,,
East Lindsey District Council,http://statistics.data.gov.uk/id/local-authority/32UC,Leisure Operations,Buildings Maintenance - Responsive,18/01/2022,30007330,404.01 ,Airco Refrigeration Air Conditioning Ltd,,
East Lindsey District Council,http://statistics.data.gov.uk/id/local-authority/32UC,Leisure Operations,Buildings Maintenance - Responsive,18/01/2022,30007332,964.76 ,Airco Refrigeration Air Conditioning Ltd,,
East Lindsey District Council,http://statistics.data.gov.uk/id/local-authority/32UC,Leisure Operations,Buildings Maintenance - Responsive,20/01/2022,30007333,"1,798.75 ",Airco Refrigeration Air Conditioning Ltd,,
East Lindsey District Council,http://statistics.data.gov.uk/id/local-authority/32UC,Leisure Operations,Buildings Maintenance - Responsive,20/01/2022,30007334,452.39 ,Airco Refrigeration Air Conditioning Ltd,,
East Lindsey District Council,http://statistics.data.gov.uk/id/local-authority/32UC,Leisure Operations,Buildings Maintenance - Responsive,25/01/2022,30007705,408.75 ,Second Element Limited,,
East Lindsey District Council,http://statistics.data.gov.uk/id/local-authority/32UC,Leisure Operations,Buildings Maintenance - Responsive,27/01/2022,30007985,299.35 ,Dalesauna Ltd,,
East Lindsey District Council,http://statistics.data.gov.uk/id/local-authority/32UC,Neighbourhoods,Agency Staff,25/01/2022,30006415,"4,458.89 ",The Workshop (Wisbech) Ltd,,
East Lindsey District Council,http://statistics.data.gov.uk/id/local-authority/32UC,Neighbourhoods,Agency Staff,11/01/2022,30006763,"4,238.94 ",The Workshop (Wisbech) Ltd,,
East Lindsey District Council,http://statistics.data.gov.uk/id/local-authority/32UC,Neighbourhoods,Agency Staff,13/01/2022,30006921,"3,662.42 ",The Workshop (Wisbech) Ltd,,
East Lindsey District Council,http://statistics.data.gov.uk/id/local-authority/32UC,Neighbourhoods,Agency Staff,13/01/2022,30006962,"3,772.39 ",The Workshop (Wisbech) Ltd,,
East Lindsey District Council,http://statistics.data.gov.uk/id/local-authority/32UC,Neighbourhoods,Agency Staff,13/01/2022,30007149,"4,370.40 ",The Workshop (Wisbech) Ltd,,
East Lindsey District Council,http://statistics.data.gov.uk/id/local-authority/32UC,Neighbourhoods,Agency Staff,25/01/2022,30007579,"5,201.76 ",The Workshop (Wisbech) Ltd,,
East Lindsey District Council,http://statistics.data.gov.uk/id/local-authority/32UC,Neighbourhoods,Buildings Maintenance - Programmed,18/01/2022,30007229,460.60 ,Stowlin Ltd,,
East Lindsey District Council,http://statistics.data.gov.uk/id/local-authority/32UC,Neighbourhoods,Clothing Uniforms And Laundry,13/01/2022,30006801,785.00 ,SMI Int Group,,
East Lindsey District Council,http://statistics.data.gov.uk/id/local-authority/32UC,Neighbourhoods,Clothing Uniforms And Laundry,03/02/2022,30007564,235.76 ,SMI Int Group,,
East Lindsey District Council,http://statistics.data.gov.uk/id/local-authority/32UC,Neighbourhoods,Employee Related Schemes (Non-Payroll),25/01/2022,30007783,215.75 ,Terryberry Reward,,
East Lindsey District Council,http://statistics.data.gov.uk/id/local-authority/32UC,Neighbourhoods,Fuel and Oil,13/01/2022,30006814,562.34 ,Watson Fuels,,
East Lindsey District Council,http://statistics.data.gov.uk/id/local-authority/32UC,Neighbourhoods,Furniture and Equipment,18/01/2022,30006866,"1,086.80 ",Lloyd Ltd,,
East Lindsey District Council,http://statistics.data.gov.uk/id/local-authority/32UC,Neighbourhoods,Furniture and Equipment,18/01/2022,30006867,500.00 ,Lloyd Ltd,,
East Lindsey District Council,http://statistics.data.gov.uk/id/local-authority/32UC,Neighbourhoods,Grounds Maintenance Contract (External),27/01/2022,30006948,"12,105.09 ",Glendale Grounds Management Limited,,
East Lindsey District Council,http://statistics.data.gov.uk/id/local-authority/32UC,Neighbourhoods,Maintenance,11/01/2022,30006791,672.63 ,Chandlers (Farm Equipment) Ltd,,
East Lindsey District Council,http://statistics.data.gov.uk/id/local-authority/32UC,Neighbourhoods,Maintenance,11/01/2022,30006793,941.68 ,Chandlers (Farm Equipment) Ltd,,
East Lindsey District Council,http://statistics.data.gov.uk/id/local-authority/32UC,Neighbourhoods,Maintenance,13/01/2022,30007167,821.84 ,Bucher Municipal,,
East Lindsey District Council,http://statistics.data.gov.uk/id/local-authority/32UC,Neighbourhoods,Maintenance,13/01/2022,30007169,544.41 ,Bucher Municipal,,
East Lindsey District Council,http://statistics.data.gov.uk/id/local-authority/32UC,Neighbourhoods,Maintenance,13/01/2022,30007170,422.22 ,Bucher Municipal,,
East Lindsey District Council,http://statistics.data.gov.uk/id/local-authority/32UC,Neighbourhoods,Maintenance,13/01/2022,30007171,266.13 ,Bucher Municipal,,
East Lindsey District Council,http://statistics.data.gov.uk/id/local-authority/32UC,Neighbourhoods,Maintenance,20/01/2022,30007172,227.13 ,Bucher Municipal,,
East Lindsey District Council,http://statistics.data.gov.uk/id/local-authority/32UC,Neighbourhoods,Materials and Consumables,13/01/2022,30006754,"1,204.29 ",Charles Hill Ltd,,
East Lindsey District Council,http://statistics.data.gov.uk/id/local-authority/32UC,Neighbourhoods,Materials and Consumables,11/01/2022,30006860,943.45 ,Burdens Group Ltd,,
East Lindsey District Council,http://statistics.data.gov.uk/id/local-authority/32UC,Neighbourhoods,Materials and Consumables,11/01/2022,30006861,"1,097.54 ",Burdens Group Ltd,,
East Lindsey District Council,http://statistics.data.gov.uk/id/local-authority/32UC,Neighbourhoods,Materials and Consumables,20/01/2022,30006909,"9,470.32 ",Cromwell Polythene Ltd,,
East Lindsey District Council,http://statistics.data.gov.uk/id/local-authority/32UC,Neighbourhoods,Materials and Consumables,27/01/2022,30006981,"1,107.24 ",Watson Fuels,,
East Lindsey District Council,http://statistics.data.gov.uk/id/local-authority/32UC,Neighbourhoods,Materials and Consumables,13/01/2022,30007083,423.40 ,Eastern Shires Purchasing Organisation,,
East Lindsey District Council,http://statistics.data.gov.uk/id/local-authority/32UC,Neighbourhoods,Materials and Consumables,03/02/2022,30007162,"6,777.44 ",Cromwell Polythene Ltd,,
East Lindsey District Council,http://statistics.data.gov.uk/id/local-authority/32UC,Neighbourhoods,Materials and Consumables,18/01/2022,30007235,"1,005.50 ",James Coles & Sons (Nurseries) Ltd,,
East Lindsey District Council,http://statistics.data.gov.uk/id/local-authority/32UC,Neighbourhoods,Other Private Contractors,13/01/2022,30006703,"38,599.92 ",Danfo UK Ltd,,
East Lindsey District Council,http://statistics.data.gov.uk/id/local-authority/32UC,Neighbourhoods,Professional and Contractors Fees,13/01/2022,30006923,954.00 ,Sid Dennis and Sons Ltd,,
East Lindsey District Council,http://statistics.data.gov.uk/id/local-authority/32UC,Neighbourhoods,Professional and Contractors Fees,13/01/2022,30006924,530.00 ,Sid Dennis and Sons Ltd,,
East Lindsey District Council,http://statistics.data.gov.uk/id/local-authority/32UC,Neighbourhoods,Professional and Contractors Fees,18/01/2022,30007574,241.92 ,Greenaway,,
East Lindsey District Council,http://statistics.data.gov.uk/id/local-authority/32UC,Neighbourhoods,Professional and Contractors Fees,25/01/2022,30007886,424.00 ,Sid Dennis and Sons Ltd,,
East Lindsey District Council,http://statistics.data.gov.uk/id/local-authority/32UC,Neighbourhoods,Professional and Contractors Fees,27/01/2022,30007888,742.00 ,Sid Dennis and Sons Ltd,,
East Lindsey District Council,http://statistics.data.gov.uk/id/local-authority/32UC,Neighbourhoods,Water and Sewerage Charges,27/01/2022,30006654,824.01 ,Wave Anglian Water Business National Ltd,,
East Lindsey District Council,http://statistics.data.gov.uk/id/local-authority/32UC,Neighbourhoods,Water and Sewerage Charges,11/01/2022,30006771,352.69 ,Wave Anglian Water Business National Ltd,,
East Lindsey District Council,http://statistics.data.gov.uk/id/local-authority/32UC,Neighbourhoods,Water and Sewerage Charges,11/01/2022,30006775,321.66 ,Wave Anglian Water Business National Ltd,,
East Lindsey District Council,http://statistics.data.gov.uk/id/local-authority/32UC,Neighbourhoods,Workshop Parts,11/01/2022,30006792,"1,223.93 ",Chandlers (Farm Equipment) Ltd,,
East Lindsey District Council,http://statistics.data.gov.uk/id/local-authority/32UC,Neighbourhoods,Workshop Parts,20/01/2022,30007173,"1,007.43 ",Bucher Municipal,,
East Lindsey District Council,http://statistics.data.gov.uk/id/local-authority/32UC,"Performance, Governance & Commissioning",Computer Hardware Purchase,13/01/2022,30006761,"1,122.21 ",Banner Group Ltd Ta Spectrum,,
East Lindsey District Council,http://statistics.data.gov.uk/id/local-authority/32UC,"Performance, Governance & Commissioning",Computer Software Licence Costs,03/02/2022,30007093,"1,315.00 ",Snap Surveys,,
East Lindsey District Council,http://statistics.data.gov.uk/id/local-authority/32UC,"Performance, Governance & Commissioning",Costs Recharged to Outside Bodies,06/01/2022,30006662,"19,729.38 ",Lincolnshire County Council,,
East Lindsey District Council,http://statistics.data.gov.uk/id/local-authority/32UC,"Performance, Governance & Commissioning",Course Fees,18/01/2022,30007596,390.00 ,Centre For Public Scrutiny Ltd,,
East Lindsey District Council,http://statistics.data.gov.uk/id/local-authority/32UC,"Performance, Governance & Commissioning",External Printing and Design Costs,03/02/2022,30007233,342.20 ,Civica Election Services,,
East Lindsey District Council,http://statistics.data.gov.uk/id/local-authority/32UC,"Performance, Governance & Commissioning",External Printing and Design Costs,10/02/2022,30007577,"1,404.12 ",Print.UK.Com,,
East Lindsey District Council,http://statistics.data.gov.uk/id/local-authority/32UC,"Performance, Governance & Commissioning",Grants and Contributions to Outside Bodies - No Service Received,06/01/2022,30006723,"1,000.00 ",Alford Town Council,,
East Lindsey District Council,http://statistics.data.gov.uk/id/local-authority/32UC,"Performance, Governance & Commissioning",Grants and Contributions to Outside Bodies - No Service Received,01/02/2022,30007976,400.00 ,Rotary Club of Skegness,,
East Lindsey District Council,http://statistics.data.gov.uk/id/local-authority/32UC,"Performance, Governance & Commissioning",Grants and Contributions to Outside Bodies - No Service Received,01/02/2022,30007979,500.00 ,1st Louth Brownies and Rainbows,,
East Lindsey District Council,http://statistics.data.gov.uk/id/local-authority/32UC,"Performance, Governance & Commissioning",Grants and Contributions to Outside Bodies - No Service Received,17/02/2022,30007980,300.00 ,Donington On Bain Parish Council,,
East Lindsey District Council,http://statistics.data.gov.uk/id/local-authority/32UC,"Performance, Governance & Commissioning",Grants and Contributions to Outside Bodies - No Service Received,01/02/2022,30007981,300.00 ,Scamblesby Parish Council,,
East Lindsey District Council,http://statistics.data.gov.uk/id/local-authority/32UC,"Performance, Governance & Commissioning",Grants and Contributions to Outside Bodies - No Service Received,03/02/2022,30007990,500.00 ,Light House,,
East Lindsey District Council,http://statistics.data.gov.uk/id/local-authority/32UC,"Performance, Governance & Commissioning",Grants and Contributions to Outside Bodies - No Service Received,01/02/2022,30007991,300.00 ,1st Louth Rainbows,,
East Lindsey District Council,http://statistics.data.gov.uk/id/local-authority/32UC,"Performance, Governance & Commissioning",Grants and Contributions to Outside Bodies - No Service Received,03/02/2022,30007992,"1,000.00 ",Coningsby Town Council,,
East Lindsey District Council,http://statistics.data.gov.uk/id/local-authority/32UC,"Performance, Governance & Commissioning",Legal Fees,11/01/2022,30006759,"2,000.00 ",Serjeants Inn,,
East Lindsey District Council,http://statistics.data.gov.uk/id/local-authority/32UC,"Performance, Governance & Commissioning",Legal Fees,11/01/2022,30006760,"2,800.00 ",Serjeants Inn,,
East Lindsey District Council,http://statistics.data.gov.uk/id/local-authority/32UC,"Performance, Governance & Commissioning",Postages,03/02/2022,30007233,351.50 ,Civica Election Services,,
East Lindsey District Council,http://statistics.data.gov.uk/id/local-authority/32UC,"Performance, Governance & Commissioning",Postages,10/02/2022,30007578,"1,768.62 ",Print.UK.Com,,
East Lindsey District Council,http://statistics.data.gov.uk/id/local-authority/32UC,Planning Policy,Employee Professional Subscriptions (Non-Payroll),13/01/2022,30006668,321.00 ,RTPI,,
East Lindsey District Council,http://statistics.data.gov.uk/id/local-authority/32UC,Planning Policy,Grants and Contributions to Outside Bodies - No Service Received,27/01/2022,30007929,"4,010.00 ",Ingoldmells Parish Council,,
East Lindsey District Council,http://statistics.data.gov.uk/id/local-authority/32UC,Planning Policy,Professional and Contractors Fees,11/01/2022,30006802,"5,000.00 ",Create Consulting Engineers Ltd,,
East Lindsey District Council,http://statistics.data.gov.uk/id/local-authority/32UC,Planning Policy,Professional and Contractors Fees,11/01/2022,30006807,"5,000.00 ",Create Consulting Engineers Ltd,,
East Lindsey District Council,http://statistics.data.gov.uk/id/local-authority/32UC,Planning Policy,Professional and Contractors Fees,27/01/2022,30007868,"3,739.88 ",Lincolnshire Wildlife Trust,,
East Lindsey District Council,http://statistics.data.gov.uk/id/local-authority/32UC,Planning Policy,Professional and Contractors Fees,27/01/2022,30007900,"7,655.01 ",Create Consulting Engineers Ltd,,
East Lindsey District Council,http://statistics.data.gov.uk/id/local-authority/32UC,Property,Buildings Maintenance - Programmed,27/01/2022,30007785,420.00 ,Second Element Limited,,
East Lindsey District Council,http://statistics.data.gov.uk/id/local-authority/32UC,Property,Buildings Maintenance - Programmed,03/02/2022,30007975,"1,348.74 ",Avery Weigh-Tronix,,
East Lindsey District Council,http://statistics.data.gov.uk/id/local-authority/32UC,Property,Buildings Maintenance - Programmed,27/01/2022,30007987,"1,364.50 ",TVF UK Limited,,
East Lindsey District Council,http://statistics.data.gov.uk/id/local-authority/32UC,Property,Buildings Maintenance - Programmed,17/02/2022,30007988,495.00 ,Sentinel Lighting Protect Earthing Ltd,,
East Lindsey District Council,http://statistics.data.gov.uk/id/local-authority/32UC,Property,Buildings Maintenance - Responsive,18/01/2022,30006657,547.75 ,Airco Refrigeration Air Conditioning Ltd,,
East Lindsey District Council,http://statistics.data.gov.uk/id/local-authority/32UC,Property,Buildings Maintenance - Responsive,06/01/2022,30006735,285.60 ,Lincoln Security Ltd,,
East Lindsey District Council,http://statistics.data.gov.uk/id/local-authority/32UC,Property,Buildings Maintenance - Responsive,20/01/2022,30007198,873.70 ,Harlite Installations Ltd,,
East Lindsey District Council,http://statistics.data.gov.uk/id/local-authority/32UC,Property,Buildings Maintenance - Responsive,20/01/2022,30007199,420.14 ,Harlite Installations Ltd,,
East Lindsey District Council,http://statistics.data.gov.uk/id/local-authority/32UC,Property,Buildings Maintenance - Responsive,18/01/2022,30007337,570.30 ,EJ Parker Technical Services (Louth) Ltd,,
East Lindsey District Council,http://statistics.data.gov.uk/id/local-authority/32UC,Property,Buildings Maintenance - Responsive,18/01/2022,30007414,"1,206.60 ",EJ Parker Technical Services (Louth) Ltd,,
East Lindsey District Council,http://statistics.data.gov.uk/id/local-authority/32UC,Property,Buildings Maintenance - Responsive,10/02/2022,30007834,"1,235.07 ",Aaron Services Ltd,,
East Lindsey District Council,http://statistics.data.gov.uk/id/local-authority/32UC,Property,Buildings Maintenance - Responsive,17/02/2022,30007996,221.00 ,Morris Vermaport Ltd,,
East Lindsey District Council,http://statistics.data.gov.uk/id/local-authority/32UC,Property,Buildings Maintenance - Responsive,27/01/2022,30008011,593.92 ,Lincoln Security Ltd,,
East Lindsey District Council,http://statistics.data.gov.uk/id/local-authority/32UC,Property,Commercial Vehicle Maintenance,11/01/2022,30006794,671.18 ,Chandlers (Farm Equipment) Ltd,,
East Lindsey District Council,http://statistics.data.gov.uk/id/local-authority/32UC,Property,Computer Software Licence Costs,20/01/2022,30006911,"1,533.60 ",Phoenix Software Ltd,,
East Lindsey District Council,http://statistics.data.gov.uk/id/local-authority/32UC,Property,Computer Software Purchase,17/02/2022,30007908,"6,120.00 ",The Technology Forge,,
East Lindsey District Council,http://statistics.data.gov.uk/id/local-authority/32UC,Property,Furniture and Equipment,06/01/2022,30006762,433.00 ,New Start Networks Ltd,,
East Lindsey District Council,http://statistics.data.gov.uk/id/local-authority/32UC,Property,Furniture and Equipment,27/01/2022,30006979,"5,847.84 ",International Parking Systems UK Grp Ltd,,
East Lindsey District Council,http://statistics.data.gov.uk/id/local-authority/32UC,Property,Furniture and Equipment,13/01/2022,30007088,221.00 ,Eastern Shires Purchasing Organisation,,
East Lindsey District Council,http://statistics.data.gov.uk/id/local-authority/32UC,Property,Furniture and Equipment,01/02/2022,30007424,659.00 ,MKM Building Supplies Holdings Limited,,
East Lindsey District Council,http://statistics.data.gov.uk/id/local-authority/32UC,Property,Furniture and Equipment,18/01/2022,30007566,300.00 ,Digicube Ltd,,
East Lindsey District Council,http://statistics.data.gov.uk/id/local-authority/32UC,Property,Furniture and Equipment,08/02/2022,30007873,433.00 ,New Start Networks Ltd,,
East Lindsey District Council,http://statistics.data.gov.uk/id/local-authority/32UC,Property,Legal Fees,11/01/2022,30006935,"1,500.00 ",Squire Patton Boggs UK LLP,,
East Lindsey District Council,http://statistics.data.gov.uk/id/local-authority/32UC,Property,Legal Fees,01/02/2022,30008079,680.00 ,Freeths LLP,,
East Lindsey District Council,http://statistics.data.gov.uk/id/local-authority/32UC,Property,Materials and Consumables,01/02/2022,30006727,284.46 ,MKM Building Supplies Holdings Limited,,
East Lindsey District Council,http://statistics.data.gov.uk/id/local-authority/32UC,Property,Other Miscellaneous Expenses,03/02/2022,30007653,301.87 ,Francotyp Postalia Ltd (consumables),,
East Lindsey District Council,http://statistics.data.gov.uk/id/local-authority/32UC,Property,Professional and Contractors Fees,04/01/2022,30006671,"3,706.00 ",Biffa Waste Services Ltd,,
East Lindsey District Council,http://statistics.data.gov.uk/id/local-authority/32UC,Property,Professional and Contractors Fees,18/01/2022,30006787,"1,000.00 ",Banks Long and Co Ltd,,
East Lindsey District Council,http://statistics.data.gov.uk/id/local-authority/32UC,Property,Professional and Contractors Fees,11/01/2022,30006798,526.00 ,Olsens,,
East Lindsey District Council,http://statistics.data.gov.uk/id/local-authority/32UC,Property,Professional and Contractors Fees,11/01/2022,30006862,330.00 ,Chipside Ltd,,
East Lindsey District Council,http://statistics.data.gov.uk/id/local-authority/32UC,Property,Professional and Contractors Fees,20/01/2022,30006966,250.00 ,Biffa Waste Services Ltd,,
East Lindsey District Council,http://statistics.data.gov.uk/id/local-authority/32UC,Property,Professional and Contractors Fees,13/01/2022,30007148,400.00 ,Restore Datashred,,
East Lindsey District Council,http://statistics.data.gov.uk/id/local-authority/32UC,Property,Professional and Contractors Fees,13/01/2022,30007196,"1,085.00 ",M.A.P Security Solutions Ltd,,
East Lindsey District Council,http://statistics.data.gov.uk/id/local-authority/32UC,Property,Professional and Contractors Fees,18/01/2022,30007210,"22,268.45 ",Pick Everard,,
East Lindsey District Council,http://statistics.data.gov.uk/id/local-authority/32UC,Property,Professional and Contractors Fees,03/02/2022,30007297,788.82 ,Phs Group,,
East Lindsey District Council,http://statistics.data.gov.uk/id/local-authority/32UC,Property,Professional and Contractors Fees,27/01/2022,30007602,455.13 ,Chipside Ltd,,
East Lindsey District Council,http://statistics.data.gov.uk/id/local-authority/32UC,Property,Professional and Contractors Fees,01/02/2022,30007902,"1,250.00 ",Chipside Ltd,,
East Lindsey District Council,http://statistics.data.gov.uk/id/local-authority/32UC,Property,Professional and Contractors Fees,01/02/2022,30007993,"1,868.50 ",Chipside Ltd,,
East Lindsey District Council,http://statistics.data.gov.uk/id/local-authority/32UC,Property,Rent Payments,13/01/2022,30006850,"5,833.33 ",Innes England,,
East Lindsey District Council,http://statistics.data.gov.uk/id/local-authority/32UC,Property,Rent Payments,03/02/2022,30007415,"5,833.33 ",Innes England,,
East Lindsey District Council,http://statistics.data.gov.uk/id/local-authority/32UC,Property,Water and Sewerage Charges,06/01/2022,30006749,644.64 ,Wave Anglian Water Business National Ltd,,
East Lindsey District Council,http://statistics.data.gov.uk/id/local-authority/32UC,Property,Water and Sewerage Charges,06/01/2022,30006757,418.24 ,Wave Anglian Water Business National Ltd,,
East Lindsey District Council,http://statistics.data.gov.uk/id/local-authority/32UC,Property,Water and Sewerage Charges,06/01/2022,30006778,"1,850.32 ",Wave Anglian Water Business National Ltd,,
East Lindsey District Council,http://statistics.data.gov.uk/id/local-authority/32UC,Property,Water and Sewerage Charges,27/01/2022,30007612,"5,265.08 ",Wave Anglian Water Business National Ltd,,
East Lindsey District Council,http://statistics.data.gov.uk/id/local-authority/32UC,Property,Water and Sewerage Charges,27/01/2022,30007958,"12,308.28 ",Wave Anglian Water Business National Ltd,,
East Lindsey District Council,http://statistics.data.gov.uk/id/local-authority/32UC,Public Protection,Other Miscellaneous Expenses,18/01/2022,30007203,300.00 ,BT,,
East Lindsey District Council,http://statistics.data.gov.uk/id/local-authority/32UC,Public Protection,Professional and Contractors Fees,06/01/2022,30006608,720.00 ,Videcom Security Limited,,
East Lindsey District Council,http://statistics.data.gov.uk/id/local-authority/32UC,Public Protection,Professional and Contractors Fees,18/01/2022,30006666,"3,085.67 ",Lincolnshire County Council,,
East Lindsey District Council,http://statistics.data.gov.uk/id/local-authority/32UC,Public Protection,Professional and Contractors Fees,11/01/2022,30006808,237.49 ,Hill Phelan Equine Farm Vet Surgeons,,
East Lindsey District Council,http://statistics.data.gov.uk/id/local-authority/32UC,Public Protection,Professional and Contractors Fees,18/01/2022,30006982,"2,906.64 ",Lincolnshire County Council,,
East Lindsey District Council,http://statistics.data.gov.uk/id/local-authority/32UC,Public Protection,Professional and Contractors Fees,10/02/2022,30007582,325.00 ,Videcom Security Limited,,
East Lindsey District Council,http://statistics.data.gov.uk/id/local-authority/32UC,Public Protection,Professional Fees,11/01/2022,30006811,"1,723.10 ",New Auto Ltd,,
East Lindsey District Council,http://statistics.data.gov.uk/id/local-authority/32UC,Theatre,Buildings Maintenance - Responsive,27/01/2022,30007336,306.00 ,Airco Refrigeration Air Conditioning Ltd,,
East Lindsey District Council,http://statistics.data.gov.uk/id/local-authority/32UC,Theatre,Buildings Maintenance - Responsive,15/02/2022,30007972,886.00 ,Morris Vermaport Ltd,,
East Lindsey District Council,http://statistics.data.gov.uk/id/local-authority/32UC,Theatre,Buildings Maintenance - Responsive,01/02/2022,30008036,"21,680.66 ",Gelder Ltd,,
East Lindsey District Council,http://statistics.data.gov.uk/id/local-authority/32UC,Theatre,Buildings Maintenance - Responsive,17/02/2022,30008038,297.00 ,Airco Refrigeration Air Conditioning Ltd,,
East Lindsey District Council,http://statistics.data.gov.uk/id/local-authority/32UC,Theatre,Buildings Maintenance - Responsive,17/02/2022,30008072,412.40 ,Park Control Systems Ltd,,
East Lindsey District Council,http://statistics.data.gov.uk/id/local-authority/32UC,Waste,Agency Staff,06/01/2022,30006752,"7,213.60 ",Red Rock Partnership Ltd,,
East Lindsey District Council,http://statistics.data.gov.uk/id/local-authority/32UC,Waste,Agency Staff,06/01/2022,30006764,726.00 ,Reilyn Ltd,,
East Lindsey District Council,http://statistics.data.gov.uk/id/local-authority/32UC,Waste,Agency Staff,11/01/2022,30006925,726.00 ,Reilyn Ltd,,
East Lindsey District Council,http://statistics.data.gov.uk/id/local-authority/32UC,Waste,Agency Staff,11/01/2022,30006930,"7,631.94 ",Red Rock Partnership Ltd,,
East Lindsey District Council,http://statistics.data.gov.uk/id/local-authority/32UC,Waste,Agency Staff,11/01/2022,30006952,603.80 ,The Best Connection Group Ltd,,
East Lindsey District Council,http://statistics.data.gov.uk/id/local-authority/32UC,Waste,Agency Staff,11/01/2022,30006953,502.33 ,The Best Connection Group Ltd,,
East Lindsey District Council,http://statistics.data.gov.uk/id/local-authority/32UC,Waste,Agency Staff,11/01/2022,30006954,459.88 ,The Best Connection Group Ltd,,
East Lindsey District Council,http://statistics.data.gov.uk/id/local-authority/32UC,Waste,Agency Staff,11/01/2022,30006955,367.90 ,The Best Connection Group Ltd,,
East Lindsey District Council,http://statistics.data.gov.uk/id/local-authority/32UC,Waste,Agency Staff,13/01/2022,30006956,523.55 ,The Best Connection Group Ltd,,
East Lindsey District Council,http://statistics.data.gov.uk/id/local-authority/32UC,Waste,Agency Staff,20/01/2022,30006957,571.70 ,The Best Connection Group Ltd,,
East Lindsey District Council,http://statistics.data.gov.uk/id/local-authority/32UC,Waste,Agency Staff,11/01/2022,30006976,290.40 ,Reilyn Ltd,,
East Lindsey District Council,http://statistics.data.gov.uk/id/local-authority/32UC,Waste,Agency Staff,18/01/2022,30007208,"4,378.75 ",Red Rock Partnership Ltd,,
East Lindsey District Council,http://statistics.data.gov.uk/id/local-authority/32UC,Waste,Agency Staff,18/01/2022,30007212,"7,553.62 ",Red Rock Partnership Ltd,,
East Lindsey District Council,http://statistics.data.gov.uk/id/local-authority/32UC,Waste,Agency Staff,18/01/2022,30007565,290.40 ,Reilyn Ltd,,
East Lindsey District Council,http://statistics.data.gov.uk/id/local-authority/32UC,Waste,Agency Staff,25/01/2022,30007580,580.80 ,Reilyn Ltd,,
East Lindsey District Council,http://statistics.data.gov.uk/id/local-authority/32UC,Waste,Agency Staff,20/01/2022,30007649,"8,736.46 ",Red Rock Partnership Ltd,,
East Lindsey District Council,http://statistics.data.gov.uk/id/local-authority/32UC,Waste,Agency Staff,27/01/2022,30007916,"6,338.45 ",Red Rock Partnership Ltd,,
East Lindsey District Council,http://statistics.data.gov.uk/id/local-authority/32UC,Waste,Clothing Uniforms And Laundry,03/02/2022,30007192,234.65 ,Arco Ltd,,
East Lindsey District Council,http://statistics.data.gov.uk/id/local-authority/32UC,Waste,Computer Software Licence Costs,20/01/2022,30007671,"20,920.00 ",Bartec Municipal Technologies Limited,,
East Lindsey District Council,http://statistics.data.gov.uk/id/local-authority/32UC,Waste,Course Fees,27/01/2022,30007931,290.00 ,TIS Training Consultancy,,
East Lindsey District Council,http://statistics.data.gov.uk/id/local-authority/32UC,Waste,External Printing and Design Costs,25/01/2022,30007401,"3,183.02 ",Systematic Print Management Ltd,,
East Lindsey District Council,http://statistics.data.gov.uk/id/local-authority/32UC,Waste,External Printing and Design Costs,01/02/2022,30007823,"2,958.00 ",Systematic Print Management Ltd,,
East Lindsey District Council,http://statistics.data.gov.uk/id/local-authority/32UC,Waste,Fuel and Oil,18/01/2022,30007507,"4,636.55 ",Allstar Business Solutions Ltd,,
East Lindsey District Council,http://statistics.data.gov.uk/id/local-authority/32UC,Waste,Fuel and Oil,27/01/2022,30007562,"3,596.45 ",Allstar Business Solutions Ltd,,
East Lindsey District Council,http://statistics.data.gov.uk/id/local-authority/32UC,Waste,Materials and Consumables,20/01/2022,30005630,"12,959.50 ",ESE Ltd,,
East Lindsey District Council,http://statistics.data.gov.uk/id/local-authority/32UC,Waste,Materials and Consumables,27/01/2022,30006978,228.00 ,Arco Ltd,,
East Lindsey District Council,http://statistics.data.gov.uk/id/local-authority/32UC,Waste,Materials and Consumables,03/02/2022,30007696,512.75 ,Witham Oil & Paint Ltd,,
East Lindsey District Council,http://statistics.data.gov.uk/id/local-authority/32UC,Waste,Other Private Contractors,27/01/2022,30007211,"1,127.69 ",Glass Recycling UK Ltd,,
East Lindsey District Council,http://statistics.data.gov.uk/id/local-authority/32UC,Waste,Professional and Contractors Fees,06/01/2022,30006741,498.00 ,Licence Bureau,,
East Lindsey District Council,http://statistics.data.gov.uk/id/local-authority/32UC,Waste,Professional and Contractors Fees,11/01/2022,30006854,540.00 ,Syston Doors,,
East Lindsey District Council,http://statistics.data.gov.uk/id/local-authority/32UC,Waste,Professional and Contractors Fees,18/01/2022,30007594,251.66 ,Phs Group,,
East Lindsey District Council,http://statistics.data.gov.uk/id/local-authority/32UC,Waste,Vehicle Recovery,18/01/2022,30007234,425.00 ,Peter & David Cosby,,
East Lindsey District Council,http://statistics.data.gov.uk/id/local-authority/32UC,Waste,Workshop Consumables,27/01/2022,30007622,300.97 ,Pirtek,,
East Lindsey District Council,http://statistics.data.gov.uk/id/local-authority/32UC,Waste,Workshop Parts,20/01/2022,30006002,737.90 ,Dennis Eagle Ltd,,
East Lindsey District Council,http://statistics.data.gov.uk/id/local-authority/32UC,Waste,Workshop Parts,11/01/2022,30006815,350.00 ,M J Windscreens Ltd,,
East Lindsey District Council,http://statistics.data.gov.uk/id/local-authority/32UC,Waste,Workshop Parts,11/01/2022,30006818,800.00 ,East Coast Commercial Ltd,,
East Lindsey District Council,http://statistics.data.gov.uk/id/local-authority/32UC,Waste,Workshop Parts,11/01/2022,30006823,512.50 ,B A Bush and Son Ltd,,
East Lindsey District Council,http://statistics.data.gov.uk/id/local-authority/32UC,Waste,Workshop Parts,13/01/2022,30006824,218.77 ,Ford and Slater DAF (Lincoln Newark),,
East Lindsey District Council,http://statistics.data.gov.uk/id/local-authority/32UC,Waste,Workshop Parts,11/01/2022,30006855,286.76 ,N T Shaw of Louth,,
East Lindsey District Council,http://statistics.data.gov.uk/id/local-authority/32UC,Waste,Workshop Parts,11/01/2022,30006858,261.77 ,N T Shaw of Louth,,
East Lindsey District Council,http://statistics.data.gov.uk/id/local-authority/32UC,Waste,Workshop Parts,11/01/2022,30006859,255.27 ,N T Shaw of Louth,,
East Lindsey District Council,http://statistics.data.gov.uk/id/local-authority/32UC,Waste,Workshop Parts,13/01/2022,30006917,245.00 ,Partic Motor Spares Ltd,,
East Lindsey District Council,http://statistics.data.gov.uk/id/local-authority/32UC,Waste,Workshop Parts,20/01/2022,30006942,347.95 ,Partic Motor Spares Ltd,,
East Lindsey District Council,http://statistics.data.gov.uk/id/local-authority/32UC,Waste,Workshop Parts,11/01/2022,30006960,374.00 ,Partic Motor Spares Ltd,,
East Lindsey District Council,http://statistics.data.gov.uk/id/local-authority/32UC,Waste,Workshop Parts,11/01/2022,30007076,303.45 ,AW Smith Ltd t/a Louth Tractors,,
East Lindsey District Council,http://statistics.data.gov.uk/id/local-authority/32UC,Waste,Workshop Parts,11/01/2022,30007079,281.00 ,AW Smith Ltd t/a Louth Tractors,,
East Lindsey District Council,http://statistics.data.gov.uk/id/local-authority/32UC,Waste,Workshop Parts,11/01/2022,30007081,218.39 ,Waste Parts UK Ltd,,
East Lindsey District Council,http://statistics.data.gov.uk/id/local-authority/32UC,Waste,Workshop Parts,11/01/2022,30007090,394.42 ,Mcfarlands of Louth Ltd,,
East Lindsey District Council,http://statistics.data.gov.uk/id/local-authority/32UC,Waste,Workshop Parts,27/01/2022,30007153,362.01 ,Partic Motor Spares Ltd,,
East Lindsey District Council,http://statistics.data.gov.uk/id/local-authority/32UC,Waste,Workshop Parts,27/01/2022,30007157,362.58 ,Partic Motor Spares Ltd,,
East Lindsey District Council,http://statistics.data.gov.uk/id/local-authority/32UC,Waste,Workshop Parts,03/02/2022,30007186,511.08 ,Waste Parts UK Ltd,,
East Lindsey District Council,http://statistics.data.gov.uk/id/local-authority/32UC,Waste,Workshop Parts,18/01/2022,30007231,"9,200.00 ",Vaculug Technologies Ltd,,
East Lindsey District Council,http://statistics.data.gov.uk/id/local-authority/32UC,Waste,Workshop Parts,20/01/2022,30007318,"1,197.33 ",Partic Motor Spares Ltd,,
East Lindsey District Council,http://statistics.data.gov.uk/id/local-authority/32UC,Waste,Workshop Parts,03/02/2022,30007319,235.14 ,Partic Motor Spares Ltd,,
East Lindsey District Council,http://statistics.data.gov.uk/id/local-authority/32UC,Waste,Workshop Parts,10/02/2022,30007335,501.82 ,Ford and Slater DAF (Lincoln Newark),,
East Lindsey District Council,http://statistics.data.gov.uk/id/local-authority/32UC,Waste,Workshop Parts,10/02/2022,30007425,670.00 ,Ford and Slater DAF (Lincoln Newark),,
East Lindsey District Council,http://statistics.data.gov.uk/id/local-authority/32UC,Waste,Workshop Parts,27/01/2022,30007618,297.88 ,AW Smith Ltd t/a Louth Tractors,,
East Lindsey District Council,http://statistics.data.gov.uk/id/local-authority/32UC,Waste,Workshop Parts,10/02/2022,30007623,327.88 ,Bryan Coupland Ltd,,
East Lindsey District Council,http://statistics.data.gov.uk/id/local-authority/32UC,Waste,Workshop Parts,20/01/2022,30007668,509.35 ,Partic Motor Spares Ltd,,
East Lindsey District Council,http://statistics.data.gov.uk/id/local-authority/32UC,Waste,Workshop Parts,10/02/2022,30007669,299.83 ,Partic Motor Spares Ltd,,
East Lindsey District Council,http://statistics.data.gov.uk/id/local-authority/32UC,Waste,Workshop Parts,17/02/2022,30007825,610.00 ,Ford and Slater DAF (Lincoln Newark),,
East Lindsey District Council,http://statistics.data.gov.uk/id/local-authority/32UC,Waste,Workshop Parts,17/02/2022,30007830,305.00 ,Ford and Slater DAF (Lincoln Newark),,
East Lindsey District Council,http://statistics.data.gov.uk/id/local-authority/32UC,Waste,Workshop Parts,17/02/2022,30007869,335.00 ,Ford and Slater DAF (Lincoln Newark),,
East Lindsey District Council,http://statistics.data.gov.uk/id/local-authority/32UC,Waste,Workshop Parts,25/01/2022,30007874,335.75 ,Dennis Eagle Ltd,,
East Lindsey District Council,http://statistics.data.gov.uk/id/local-authority/32UC,Waste,Workshop Parts,25/01/2022,30007875,445.20 ,Dennis Eagle Ltd,,
East Lindsey District Council,http://statistics.data.gov.uk/id/local-authority/32UC,Waste,Workshop Parts,25/01/2022,30007877,240.83 ,Dennis Eagle Ltd,,
East Lindsey District Council,http://statistics.data.gov.uk/id/local-authority/32UC,Waste,Workshop Parts,17/02/2022,30007879,625.00 ,Ford and Slater DAF (Lincoln Newark),,
East Lindsey District Council,http://statistics.data.gov.uk/id/local-authority/32UC,Waste,Workshop Parts,27/01/2022,30007882,751.77 ,Dennis Eagle Ltd,,
East Lindsey District Council,http://statistics.data.gov.uk/id/local-authority/32UC,Waste,Workshop Parts,03/02/2022,30007897,325.00 ,Partic Motor Spares Ltd,,
East Lindsey District Council,http://statistics.data.gov.uk/id/local-authority/32UC,Waste,Workshop Parts,01/02/2022,30008055,415.37 ,Dennis Eagle Ltd,,
East Lindsey District Council,http://statistics.data.gov.uk/id/local-authority/32UC,Waste,Workshop Parts,08/02/2022,30008057,715.76 ,Dennis Eagle Ltd,,
